fUST/lending_fUST_20250809
["ID","MTS","AMOUNT","RATE_DAILY","PERIOD"]
[378091311,1754722247307,-213698.15448778,0.000219,2]
[378091313,1754722247318,-462.48057749,0.00021917,2]
[378091315,1754722247328,-461.9303063,0.00021917,2]
[378091317,1754722247337,-460.0,0.00021917,2]
[378091319,1754722247346,-460.0,0.00021917,2]
[378091321,1754722247356,-460.0,0.00021917,2]
[378091323,1754722247365,-463.57155922,0.00021917,2]
[378091325,1754722247375,-460.0,0.00021917,2]
[378091327,1754722247384,-460.0,0.00021917,2]
[378091329,1754722247396,-464.68716213,0.00021917,2]
[378091331,1754722247405,-460.0,0.00021917,2]
[378091333,1754722247414,-460.0,0.00021917,2]
[378091335,1754722247423,-461.73274431,0.00021917,2]
[378091337,1754722247432,-463.38151728,0.00021917,2]
[378091339,1754722247441,-160.42550584,0.00021917,2]
[378091341,1754722247450,-265.95740071,0.00021917,2]
[378091343,1754722247460,-460.0,0.00021917,2]
[378091345,1754722247469,-195.38175178,0.00021917,2]
[378091347,1754722247479,-460.0,0.00021917,2]
[378091349,1754722247488,-460.0,0.00021917,2]
[378091351,1754722247497,-460.0,0.00021917,2]
[378091353,1754722247507,-460.0,0.00021917,2]
[378091355,1754722247516,-460.0,0.00021917,2]
[378091357,1754722247525,-212.37175286,0.00021917,2]
[378091359,1754722247535,-460.0,0.00021917,2]
[378091361,1754722247544,-462.92974617,0.00021917,2]
[378091363,1754722247553,-460.0,0.00021917,2]
[378091365,1754722247562,-460.0,0.00021917,2]
[378091367,1754722247572,-463.22645197,0.00021917,2]
[378091369,1754722247581,-460.0,0.00021917,2]
[378091371,1754722247590,-171.68268685,0.00021917,2]
[378091373,1754722247600,-460.0,0.00021917,2]
[378091375,1754722247610,-460.0,0.00021917,2]
[378091377,1754722247619,-460.0,0.00021917,2]
[378091379,1754722247629,-460.0,0.00021917,2]
[378091381,1754722247638,-460.0,0.00021917,2]
[378091382,1754722247647,-460.0,0.00021917,2]
[378091383,1754722247656,-460.0,0.00021917,2]
[378091384,1754722247666,-460.0,0.00021917,2]
[378091385,1754722247675,-460.0,0.00021917,2]
[378091386,1754722247684,-460.0,0.00021917,2]
[378091387,1754722247693,-460.0,0.00021917,2]
[378091388,1754722247703,-460.0,0.00021917,2]
[378091389,1754722247712,-460.0,0.00021917,2]
[378091390,1754722247721,-460.0,0.00021917,2]
[378091392,1754722247730,-460.0,0.00021917,2]
[378091394,1754722247739,-494.64,0.00021917,2]
[378091395,1754722247749,-460.0,0.00021917,2]
[378091396,1754722247758,-460.0,0.00021917,2]
[378091397,1754722247768,-460.0,0.00021917,2]
[378091398,1754722247777,-465.21206421,0.00021917,2]
[378091399,1754722247786,-460.0,0.00021917,2]
[378091400,1754722247796,-460.0,0.00021917,2]
[378091401,1754722247805,-460.0,0.00021917,2]
[378091402,1754722247815,-460.0,0.00021917,2]
[378091403,1754722247825,-460.0,0.00021917,2]
[378091404,1754722247834,-460.0,0.00021917,2]
[378091405,1754722247845,-460.0,0.00021917,2]
[378091406,1754722247855,-460.0,0.00021917,2]
[378091407,1754722247864,-460.0,0.00021917,2]
[378091408,1754722247873,-462.90429166,0.00021917,2]
[378091409,1754722247883,-460.0,0.00021917,2]
[378091410,1754722247892,-460.0,0.00021917,2]
[378091411,1754722247901,-460.0,0.00021917,2]
[378091412,1754722247911,-460.0,0.00021917,2]
[378091413,1754722247920,-460.0,0.00021917,2]
[378091414,1754722247930,-557.06,0.00021917,2]
[378091415,1754722247940,-474.23827294,0.00021917,2]
[378091416,1754722247949,-460.0,0.00021917,2]
[378091417,1754722247958,-460.0,0.00021917,2]
[378091418,1754722247968,-460.0,0.00021917,2]
[378091419,1754722247978,-460.0,0.00021917,2]
[378091420,1754722247986,-460.0,0.00021917,2]
[378091421,1754722247995,-460.0,0.00021917,2]
[378091422,1754722248005,-460.0,0.00021917,2]
[378091423,1754722248014,-460.0,0.00021917,2]
[378091424,1754722248023,-460.0,0.00021917,2]
[378091425,1754722248033,-504.60118821,0.00021917,2]
[378091426,1754722248042,-460.0,0.00021917,2]
[378091427,1754722248052,-462.42586638,0.00021917,2]
[378091428,1754722248062,-460.0,0.00021917,2]
[378091429,1754722248071,-460.0,0.00021917,2]
[378091430,1754722248081,-460.0,0.00021917,2]
[378091431,1754722248090,-460.0,0.00021917,2]
[378091432,1754722248101,-470.80189048,0.00021917,2]
[378091433,1754722248110,-460.0,0.00021917,2]
[378091434,1754722248119,-479.70448162,0.00021917,2]
[378091435,1754722248128,-460.0,0.00021917,2]
[378091436,1754722248137,-460.0,0.00021917,2]
[378091437,1754722248147,-460.0,0.00021917,2]
[378091438,1754722248156,-460.0,0.00021917,2]
[378091439,1754722248165,-500.0,0.00021917,2]
[378091440,1754722248175,-500.0,0.00021917,2]
[378091441,1754722248184,-522.07414872,0.00021917,2]
[378091442,1754722248194,-460.0,0.00021917,2]
[378091443,1754722248203,-460.0,0.00021917,2]
[378091444,1754722248212,-460.0,0.00021917,2]
[378091445,1754722248222,-460.0,0.00021917,2]
[378091446,1754722248231,-565.67136484,0.00021917,2]
[378091447,1754722248241,-460.0,0.00021917,2]
[378091448,1754722248250,-460.0,0.00021917,2]
[378091449,1754722248259,-505.09777884,0.00021917,2]
[378091450,1754722248269,-460.0,0.00021917,2]
[378091451,1754722248278,-460.0,0.00021917,2]
[378091452,1754722248288,-460.0,0.00021917,2]
[378091453,1754722248297,-460.0,0.00021917,2]
[378091454,1754722248308,-460.0,0.00021917,2]
[378091455,1754722248323,-460.0,0.00021917,2]
[378091456,1754722248334,-460.0,0.00021917,2]
[378091457,1754722248344,-460.0,0.00021917,2]
[378091458,1754722248355,-460.0,0.00021917,2]
[378091459,1754722248366,-460.0,0.00021917,2]
[378091460,1754722248377,-460.0,0.00021917,2]
[378091461,1754722248387,-460.0,0.00021917,2]
[378091462,1754722248397,-460.0,0.00021917,2]
[378091463,1754722248407,-460.0,0.00021917,2]
[378091464,1754722248418,-460.0,0.00021917,2]
[378091465,1754722248428,-460.0,0.00021917,2]
[378091466,1754722248438,-460.0,0.00021917,2]
[378091467,1754722248448,-460.0,0.00021917,2]
[378091468,1754722248457,-476.85124798,0.00021917,2]
[378091469,1754722248467,-229.41847705,0.00021917,2]
[378091470,1754722248479,-460.0,0.00021917,2]
[378091471,1754722248490,-460.0,0.00021917,2]
[378091472,1754722248501,-460.0,0.00021917,2]
[378091473,1754722248511,-723.19,0.00021917,2]
[378091474,1754722248520,-460.0,0.00021917,2]
[378091475,1754722248530,-460.0,0.00021917,2]
[378091476,1754722248539,-178.95349153,0.00021917,2]
[378091477,1754722248549,-460.0,0.00021917,2]
[378091478,1754722248559,-470.45,0.00021917,2]
[378091479,1754722248568,-460.0,0.00021917,2]
[378091480,1754722248578,-460.0,0.00021917,2]
[378091481,1754722248588,-460.0,0.00021917,2]
[378091482,1754722248597,-460.0,0.00021917,2]
[378091483,1754722248607,-819.74,0.00021917,2]
[378091484,1754722248616,-460.0,0.00021917,2]
[378091485,1754722248627,-460.0,0.00021917,2]
[378091486,1754722248636,-460.0,0.00021917,2]
[378091488,1754722248646,-460.0,0.00021917,2]
[378091489,1754722248656,-3468.8,0.00021917,2]
[378091491,1754722248666,-460.0,0.00021917,2]
[378091493,1754722248676,-460.0,0.00021917,2]
[378091495,1754722248685,-481.46321827,0.00021917,2]
[378091497,1754722248695,-460.0,0.00021917,2]
[378091499,1754722248704,-460.0,0.00021917,2]
[378091501,1754722248714,-460.0,0.00021917,2]
[378091502,1754722248725,-460.7479425,0.00021917,2]
[378091503,1754722248734,-460.0,0.00021917,2]
[378091505,1754722248744,-460.0,0.00021917,2]
[378091507,1754722248753,-460.0,0.00021917,2]
[378091509,1754722248762,-464.25032853,0.00021917,2]
[378091511,1754722248772,-463.32589812,0.00021917,2]
[378091512,1754722248781,-460.0,0.00021917,2]
[378091513,1754722248791,-460.0,0.00021917,2]
[378091515,1754722248801,-465.67144333,0.00021917,2]
[378091516,1754722248811,-1029.93,0.00021917,2]
[378091517,1754722248821,-1533.16,0.00021917,2]
[378091518,1754722248831,-273.46392974,0.00021917,2]
[378091519,1754722248842,-1760.44,0.00021917,2]
[378091520,1754722248852,-460.0,0.00021917,2]
[378091521,1754722249006,-479.73702243,0.00021917,2]
[378091522,1754722249017,-460.0,0.00021917,2]
[378091523,1754722249030,-786.52,0.00021917,2]
[378091524,1754722249040,-460.0,0.00021917,2]
[378091525,1754722249050,-460.0,0.00021917,2]
[378091526,1754722249059,-460.0,0.00021917,2]
[378091527,1754722249068,-460.0,0.00021917,2]
[378091528,1754722249078,-460.0,0.00021917,2]
[378091529,1754722249087,-509.32,0.00021917,2]
[378091530,1754722249097,-460.0,0.00021917,2]
[378091531,1754722249106,-460.0,0.00021917,2]
[378091532,1754722249116,-460.0,0.00021917,2]
[378091533,1754722249125,-472.72,0.00021917,2]
[378091534,1754722249135,-460.0,0.00021917,2]
[378091535,1754722249145,-460.66004341,0.00021917,2]
[378091536,1754722249154,-460.0,0.00021917,2]
[378091537,1754722249164,-460.0,0.00021917,2]
[378091538,1754722249173,-460.0,0.00021917,2]
[378091539,1754722249183,-570.5940463,0.00021917,2]
[378091540,1754722249193,-460.0,0.00021917,2]
[378091541,1754722249202,-460.0,0.00021917,2]
[378091542,1754722249211,-460.0,0.00021917,2]
[378091543,1754722249220,-460.0,0.00021917,2]
[378091544,1754722249230,-460.0,0.00021917,2]
[378091545,1754722249239,-566.97826364,0.00021917,2]
[378091546,1754722249248,-460.0,0.00021917,2]
[378091547,1754722249258,-460.0,0.00021917,2]
[378091548,1754722249267,-460.0,0.00021917,2]
[378091549,1754722249276,-460.0,0.00021917,2]
[378091550,1754722249286,-460.0,0.00021917,2]
[378091551,1754722249295,-1445.09,0.00021917,2]
[378091552,1754722249304,-594.50041956,0.00021917,2]
[378091553,1754722249315,-460.0,0.00021917,2]
[378091554,1754722249326,-460.0,0.00021917,2]
[378091555,1754722249336,-464.76193236,0.00021917,2]
[378091556,1754722249345,-460.0,0.00021917,2]
[378091557,1754722249354,-1571.46,0.00021917,2]
[378091558,1754722249365,-462.59655891,0.00021917,2]
[378091559,1754722249374,-615.34,0.00021917,2]
[378091560,1754722249383,-462.69833513,0.00021917,2]
[378091561,1754722249394,-460.0,0.00021917,2]
[378091562,1754722249403,-460.0,0.00021917,2]
[378091563,1754722249414,-460.0,0.00021917,2]
[378091564,1754722249423,-460.0,0.00021917,2]
[378091565,1754722249433,-460.0,0.00021917,2]
[378091566,1754722249442,-619.8,0.00021917,2]
[378091567,1754722249451,-460.24,0.00021917,2]
[378091568,1754722249460,-1250.53,0.00021917,2]
[378091569,1754722249470,-462.96444199,0.00021917,2]
[378091570,1754722249480,-460.0,0.00021917,2]
[378091571,1754722249490,-460.0,0.00021917,2]
[378091572,1754722249499,-460.0,0.00021917,2]
[378091573,1754722249508,-224.2553594,0.00021917,2]
[378091574,1754722249518,-460.0,0.00021917,2]
[378091575,1754722249527,-460.0,0.00021917,2]
[378091576,1754722249537,-400.0,0.00021917,2]
[378091577,1754722249546,-460.0,0.00021917,2]
[378091578,1754722249555,-460.0,0.00021917,2]
[378091579,1754722249564,-460.0,0.00021917,2]
[378091580,1754722249574,-617.03,0.00021917,2]
[378091581,1754722249583,-460.0,0.00021917,2]
[378091582,1754722249593,-460.0,0.00021917,2]
[378091583,1754722249602,-460.0,0.00021917,2]
[378091584,1754722249611,-460.0,0.00021917,2]
[378091585,1754722249621,-460.0,0.00021917,2]
[378091586,1754722249630,-460.0,0.00021917,2]
[378091587,1754722249640,-460.0,0.00021917,2]
[378091588,1754722249650,-460.0,0.00021917,2]
[378091589,1754722249659,-460.0,0.00021917,2]
[378091590,1754722249668,-460.0,0.00021917,2]
[378091591,1754722249678,-460.0,0.00021917,2]
[378091592,1754722249687,-462.73187356,0.00021917,2]
[378091593,1754722249696,-1225.8,0.00021917,2]
[378091594,1754722249706,-460.0,0.00021917,2]
[378091595,1754722249715,-901.81,0.00021917,2]
[378091596,1754722249726,-460.0,0.00021917,2]
[378091597,1754722249736,-460.0,0.00021917,2]
[378091598,1754722249745,-467.15600279,0.00021917,2]
[378091599,1754722249754,-460.0,0.00021917,2]
[378091600,1754722249764,-460.0,0.00021917,2]
[378091601,1754722249773,-460.0,0.00021917,2]
[378091602,1754722249783,-460.0,0.00021917,2]
[378091603,1754722249792,-460.0,0.00021917,2]
[378091604,1754722249801,-460.0,0.00021917,2]
[378091605,1754722249811,-695.15,0.00021917,2]
[378091606,1754722249820,-878.18,0.00021917,2]
[378091607,1754722249829,-460.0,0.00021917,2]
[378091608,1754722249839,-460.0,0.00021917,2]
[378091609,1754722249848,-460.0,0.00021917,2]
[378091610,1754722249857,-466.01722623,0.00021917,2]
[378091611,1754722249866,-460.0,0.00021917,2]
[378091612,1754722249875,-460.0,0.00021917,2]
[378091613,1754722249885,-460.0,0.00021917,2]
[378091614,1754722249894,-460.0,0.00021917,2]
[378091615,1754722249903,-460.0,0.00021917,2]
[378091616,1754722249913,-460.0,0.00021917,2]
[378091617,1754722249922,-460.0,0.00021917,2]
[378091618,1754722249933,-460.0,0.00021917,2]
[378091619,1754722249942,-864.31,0.00021917,2]
[378091620,1754722249951,-479.38,0.00021917,2]
[378091621,1754722249960,-460.0,0.00021917,2]
[378091622,1754722249970,-938.72,0.00021917,2]
[378091623,1754722249980,-460.0,0.00021917,2]
[378091624,1754722249990,-460.0,0.00021917,2]
[378091625,1754722249999,-918.93,0.00021917,2]
[378091626,1754722250009,-461.06711374,0.00021917,2]
[378091627,1754722250019,-465.41094485,0.00021917,2]
[378091628,1754722250030,-279.52667318,0.00021917,2]
[378091629,1754722250041,-460.0,0.00021917,2]
[378091630,1754722250051,-891.69,0.00021917,2]
[378091631,1754722250060,-464.49308287,0.00021917,2]
[378091632,1754722250070,-460.0,0.00021917,2]
[378091633,1754722250079,-460.0,0.00021917,2]
[378091634,1754722250089,-460.0,0.00021917,2]
[378091635,1754722250098,-460.0,0.00021917,2]
[378091636,1754722250107,-460.0,0.00021917,2]
[378091637,1754722250117,-590.66,0.00021917,2]
[378091638,1754722250127,-460.0,0.00021917,2]
[378091639,1754722250136,-2430.33,0.00021917,2]
[378091640,1754722250146,-460.0,0.00021917,2]
[378091641,1754722250156,-3334.29,0.00021917,2]
[378091642,1754722250165,-461.44938781,0.00021917,2]
[378091643,1754722250174,-539.91,0.00021917,2]
[378091644,1754722250184,-460.0,0.00021917,2]
[378091645,1754722250193,-323.2459122,0.00021917,2]
[378091646,1754722250203,-471.80286535,0.00021973,2]
[378091647,1754722250212,-500.0,0.00021973,2]
[378091648,1754722250223,-500.0,0.00021973,2]
[378091649,1754722250232,-500.0,0.00021973,2]
[378091650,1754722250241,-500.0,0.00021973,2]
[378091651,1754722250251,-500.0,0.00021973,2]
[378091652,1754722250260,-500.0,0.00021973,2]
[378091653,1754722250269,-252.4526827,0.00021973,2]
[378091654,1754722250279,-500.0,0.00021973,2]
[378091655,1754722250289,-500.0,0.00021973,2]
[378091656,1754722250298,-423.53710111,0.00021973,2]
[378091657,1754722250307,-500.0,0.00021973,2]
[378091658,1754722250318,-500.87294392,0.00021973,2]
[378091659,1754722250329,-100000.0,0.0002199,2]
[378091660,1754722250338,-932.07,0.00022,2]
[378091661,1754722250347,-151.0,0.000221,9]
[378091662,1754722250356,-506.10857676,0.00022173,2]
[378091663,1754722250366,-500.0,0.00022173,2]
[378091664,1754722250375,-500.0,0.00022173,2]
[378091665,1754722250384,-502.53893451,0.00022173,2]
[378091666,1754722250394,-460.0,0.00022191,2]
[378091667,1754722250404,-460.0,0.00022191,2]
[378091668,1754722250413,-460.0,0.00022191,2]
[378091669,1754722250422,-460.0,0.00022191,2]
[378091670,1754722250432,-460.0,0.00022191,2]
[378091671,1754722250441,-460.0,0.00022191,2]
[378091672,1754722250451,-460.0,0.00022191,2]
[378091673,1754722250460,-494.50437531,0.00022191,2]
[378091674,1754722250470,-460.0,0.00022191,2]
[378091675,1754722250480,-271.77467419,0.00022191,2]
[378091676,1754722250490,-494.64,0.00022191,2]
[378091677,1754722250500,-460.0,0.00022191,2]
[378091678,1754722250510,-460.0,0.00022191,2]
[378091679,1754722250519,-460.0,0.00022191,2]
[378091680,1754722250528,-460.0,0.00022191,2]
[378091681,1754722250538,-460.0,0.00022191,2]
[378091682,1754722250547,-460.0,0.00022191,2]
[378091683,1754722250556,-460.0,0.00022191,2]
[378091684,1754722250565,-460.0,0.00022191,2]
[378091685,1754722250575,-460.0,0.00022191,2]
[378091686,1754722250583,-460.0,0.00022191,2]
[378091687,1754722250593,-460.0,0.00022191,2]
[378091688,1754722250603,-460.0,0.00022191,2]
[378091689,1754722250612,-460.0,0.00022191,2]
[378091690,1754722250621,-557.06,0.00022191,2]
[378091691,1754722250631,-460.0,0.00022191,2]
[378091692,1754722250640,-460.0,0.00022191,2]
[378091693,1754722250649,-460.0,0.00022191,2]
[378091694,1754722250659,-460.0,0.00022191,2]
[378091695,1754722250668,-460.0,0.00022191,2]
[378091696,1754722250678,-460.0,0.00022191,2]
[378091697,1754722250687,-460.0,0.00022191,2]
[378091698,1754722250696,-460.0,0.00022191,2]
[378091699,1754722250706,-491.48156457,0.00022191,2]
[378091700,1754722250715,-460.0,0.00022191,2]
[378091701,1754722250725,-460.0,0.00022191,2]
[378091702,1754722250734,-460.0,0.00022191,2]
[378091703,1754722250744,-460.0,0.00022191,2]
[378091704,1754722250753,-460.0,0.00022191,2]
[378091705,1754722250763,-447.8360474,0.00022191,2]
[378091706,1754722250772,-556.25093737,0.00022191,2]
[378091707,1754722250786,-460.0,0.00022191,2]
[378091708,1754722250795,-460.0,0.00022191,2]
[378091709,1754722250805,-460.0,0.00022191,2]
[378091710,1754722250814,-460.0,0.00022191,2]
[378091711,1754722250824,-463.04227003,0.00022191,2]
[378091712,1754722250833,-460.0,0.00022191,2]
[378091713,1754722250843,-490.73637284,0.00022191,2]
[378091714,1754722250852,-460.0,0.00022191,2]
[378091715,1754722250862,-460.0,0.00022191,2]
[378091716,1754722250871,-460.0,0.00022191,2]
[378091717,1754722250880,-460.0,0.00022191,2]
[378091718,1754722250890,-519.81042122,0.00022191,2]
[378091719,1754722250899,-460.0,0.00022191,2]
[378091720,1754722250908,-460.0,0.00022191,2]
[378091721,1754722250917,-723.19,0.00022191,2]
[378091722,1754722250927,-460.0,0.00022191,2]
[378091723,1754722250936,-460.0,0.00022191,2]
[378091724,1754722250946,-460.0,0.00022191,2]
[378091725,1754722250955,-460.0,0.00022191,2]
[378091726,1754722250964,-460.0,0.00022191,2]
[378091727,1754722250974,-470.45,0.00022191,2]
[378091728,1754722250983,-819.74,0.00022191,2]
[378091729,1754722250992,-460.0,0.00022191,2]
[378091730,1754722251001,-460.0,0.00022191,2]
[378091731,1754722251010,-457.02906027,0.00022191,2]
[378091732,1754722251019,-460.0,0.00022191,2]
[378091733,1754722251027,-3468.8,0.00022191,2]
[378091734,1754722251036,-460.0,0.00022191,2]
[378091735,1754722251045,-460.0,0.00022191,2]
[378091736,1754722251054,-460.0,0.00022191,2]
[378091737,1754722251064,-460.0,0.00022191,2]
[378091738,1754722251073,-460.0,0.00022191,2]
[378091739,1754722251082,-460.0,0.00022191,2]
[378091740,1754722251091,-466.94468461,0.00022191,2]
[378091741,1754722251100,-460.0,0.00022191,2]
[378091742,1754722251109,-450.0,0.00022191,2]
[378091743,1754722251119,-1029.93,0.00022191,2]
[378091744,1754722251128,-1533.16,0.00022191,2]
[378091745,1754722251137,-1760.44,0.00022191,2]
[378091746,1754722251146,-460.0,0.00022191,2]
[378091747,1754722251156,-786.52,0.00022191,2]
[378091748,1754722251165,-460.0,0.00022191,2]
[378091749,1754722251174,-460.0,0.00022191,2]
[378091750,1754722251184,-509.32,0.00022191,2]
[378091751,1754722251194,-460.0,0.00022191,2]
[378091752,1754722251203,-460.0,0.00022191,2]
[378091753,1754722251212,-472.72,0.00022191,2]
[378091754,1754722251222,-460.0,0.00022191,2]
[378091755,1754722251231,-460.0,0.00022191,2]
[378091756,1754722251240,-460.0,0.00022191,2]
[378091757,1754722251249,-460.0,0.00022191,2]
[378091758,1754722251259,-460.0,0.00022191,2]
[378091759,1754722251268,-460.0,0.00022191,2]
[378091760,1754722251278,-460.0,0.00022191,2]
[378091761,1754722251288,-460.0,0.00022191,2]
[378091762,1754722251298,-460.0,0.00022191,2]
[378091763,1754722251307,-365.76246316,0.00022191,2]
[378091764,1754722251321,-460.0,0.00022191,2]
[378091765,1754722251330,-1445.09,0.00022191,2]
[378091766,1754722251340,-460.0,0.00022191,2]
[378091767,1754722251351,-460.0,0.00022191,2]
[378091768,1754722251361,-1571.46,0.00022191,2]
[378091769,1754722251370,-615.34,0.00022191,2]
[378091770,1754722251379,-460.0,0.00022191,2]
[378091771,1754722251391,-460.0,0.00022191,2]
[378091772,1754722251401,-460.0,0.00022191,2]
[378091773,1754722251410,-460.0,0.00022191,2]
[378091774,1754722251420,-619.8,0.00022191,2]
[378091775,1754722251429,-460.24,0.00022191,2]
[378091776,1754722251439,-1250.53,0.00022191,2]
[378091777,1754722251448,-460.0,0.00022191,2]
[378091778,1754722251457,-460.0,0.00022191,2]
[378091779,1754722251467,-520.26209175,0.00022191,2]
[378091780,1754722251476,-460.0,0.00022191,2]
[378091781,1754722251485,-617.03,0.00022191,2]
[378091782,1754722251495,-460.0,0.00022191,2]
[378091783,1754722251504,-289.56073616,0.00022191,2]
[378091784,1754722251514,-460.0,0.00022191,2]
[378091785,1754722251523,-460.0,0.00022191,2]
[378091786,1754722251533,-460.0,0.00022191,2]
[378091787,1754722251542,-460.0,0.00022191,2]
[378091788,1754722251551,-460.0,0.00022191,2]
[378091789,1754722251560,-460.0,0.00022191,2]
[378091790,1754722251570,-460.0,0.00022191,2]
[378091791,1754722251580,-1225.8,0.00022191,2]
[378091792,1754722251589,-460.0,0.00022191,2]
[378091793,1754722251600,-460.0,0.00022191,2]
[378091794,1754722251609,-901.81,0.00022191,2]
[378091795,1754722251619,-460.0,0.00022191,2]
[378091796,1754722251629,-460.0,0.00022191,2]
[378091797,1754722251638,-460.0,0.00022191,2]
[378091798,1754722251648,-460.0,0.00022191,2]
[378091799,1754722251660,-460.0,0.00022191,2]
[378091800,1754722251669,-460.0,0.00022191,2]
[378091801,1754722251679,-695.15,0.00022191,2]
[378091802,1754722251688,-878.18,0.00022191,2]
[378091803,1754722251698,-460.0,0.00022191,2]
[378091804,1754722251707,-156.79931915,0.00022191,2]
[378091805,1754722251716,-460.0,0.00022191,2]
[378091806,1754722251726,-460.0,0.00022191,2]
[378091807,1754722251736,-460.0,0.00022191,2]
[378091808,1754722251747,-460.0,0.00022191,2]
[378091809,1754722251756,-460.0,0.00022191,2]
[378091810,1754722251765,-864.31,0.00022191,2]
[378091811,1754722251776,-479.38,0.00022191,2]
[378091812,1754722251785,-460.0,0.00022191,2]
[378091813,1754722251795,-938.72,0.00022191,2]
[378091814,1754722251805,-460.0,0.00022191,2]
[378091815,1754722251815,-918.93,0.00022191,2]
[378091816,1754722251824,-460.0,0.00022191,2]
[378091817,1754722251834,-891.69,0.00022191,2]
[378091818,1754722251844,-460.0,0.00022191,2]
[378091819,1754722251854,-460.0,0.00022191,2]
[378091820,1754722251864,-460.0,0.00022191,2]
[378091821,1754722251996,-590.66,0.00022191,2]
[378091822,1754722252007,-2430.33,0.00022191,2]
[378091823,1754722252018,-460.0,0.00022191,2]
[378091824,1754722252028,-539.91,0.00022191,2]
[378091825,1754722252038,-151.0,0.000222,8]
[378091826,1754722252048,-151.0,0.000222,7]
[378091827,1754722252059,-460.0,0.00022465,2]
[378091828,1754722252067,-460.0,0.00022465,2]
[378091829,1754722252077,-460.0,0.00022465,2]
[378091830,1754722252087,-460.0,0.00022465,2]
[378091831,1754722252097,-460.0,0.00022465,2]
[378091832,1754722252107,-494.64,0.00022465,2]
[378091833,1754722252117,-259.0262404,0.00022465,2]
[378091834,1754722252127,-460.0,0.00022465,2]
[378091835,1754722252136,-460.0,0.00022465,2]
[378091836,1754722252147,-460.0,0.00022465,2]
[378091837,1754722252156,-460.0,0.00022465,2]
[378091838,1754722252166,-460.0,0.00022465,2]
[378091839,1754722252176,-460.0,0.00022465,2]
[378091840,1754722252185,-460.0,0.00022465,2]
[378091841,1754722252195,-460.0,0.00022465,2]
[378091842,1754722252207,-460.0,0.00022465,2]
[378091843,1754722252216,-557.06,0.00022465,2]
[378091844,1754722252227,-460.0,0.00022465,2]
[378091845,1754722252236,-460.0,0.00022465,2]
[378091846,1754722252245,-460.0,0.00022465,2]
[378091847,1754722252255,-460.0,0.00022465,2]
[378091848,1754722252266,-460.0,0.00022465,2]
[378091849,1754722252276,-460.0,0.00022465,2]
[378091850,1754722252285,-460.0,0.00022465,2]
[378091851,1754722252294,-460.0,0.00022465,2]
[378091852,1754722252303,-460.0,0.00022465,2]
[378091853,1754722252313,-460.0,0.00022465,2]
[378091854,1754722252327,-460.0,0.00022465,2]
[378091855,1754722252336,-460.0,0.00022465,2]
[378091856,1754722252345,-460.0,0.00022465,2]
[378091857,1754722252355,-460.0,0.00022465,2]
[378091858,1754722252366,-460.0,0.00022465,2]
[378091859,1754722252376,-460.0,0.00022465,2]